Cogmind - Beta 15 @@@ ROGUE MODE // 2025.05.31 @ 14:53:10 // Winter2022/Polymind Player: Figgis Result: Self-destructed Performance ------------- Evolutions (3) 1500 Regions Visited (7) 1400 Robots Destroyed (22) 110 Value Destroyed (840) 840 Prototype IDs (6) 120 Alien Tech Used (0) 0 Bonus (2650) 2650 TOTAL SCORE: 6430 Bonus ------- Polymind Skill 2650 Cogmind --------- Core Integrity 597/700 Matter 0/0 Energy 235/235 System Corruption 0% Temperature Cool (0) Movement Hovering (80) Location -7/Storage Parts ------- > --- POWER (1) -------- Heavy Deuterium Engine > --- PROPULSION (1) --- Combat Antigrav System > --- UTILITY (22) ----- Advanced Launcher Guidance Computer Improved Target Analyzer Experimental Core Analyzer Improved Armor Integrity Analyzer EX Chip 1 EX Chip 1 EX Chip 1 EX Chip 1 EX Chip 1 EX Chip 2 EX Chip 2 EX Chip 2 EX Chip 2 EX Chip 2 EX Chip 2 EX Chip 2 > --- WEAPON (2) ------- (None) > --- INVENTORY (2) ---- Deploy-a-Sentry Peak State ------------ > --- POWER ------------ Heavy Deuterium Engine > --- PROPULSION ------- Combat Antigrav System > --- UTILITY ---------- Advanced Launcher Guidance Computer Improved Target Analyzer Experimental Core Analyzer Improved Armor Integrity Analyzer EX Chip 1 EX Chip 1 EX Chip 1 EX Chip 1 EX Chip 1 EX Chip 1 EX Chip 1 EX Chip 1 EX Chip 1 EX Chip 1 EX Chip 2 EX Chip 2 EX Chip 2 EX Chip 2 EX Chip 2 EX Chip 2 EX Chip 2 EX Chip 2 > --- WEAPON ----------- AWS/EX-DEC > --- INVENTORY -------- Deploy-a-Sentry [Rating: 99] Favorites ----------- Power Heavy Deuterium Engine Engine Heavy Deuterium Engine Propulsion Combat Antigrav System Leg Aluminum Leg Hover Unit Combat Antigrav System Utility EX Chip 1 Device Heat Sink Processor Advanced Launcher Guidance Computer Hackware EX Chip 1 Weapon AWS/EX-DEC Energy Gun AWS/EX-DEC Special Melee Weapon Datajack Build | -11 -10 -10 -10 -9 -8 -7 -7 ------- Run | Yrd Mat Min Exi Min Mat Fac Sto Slots Evolved . | . . . . . . . . Power . | . . . . . . . . Propulsion . | . . . . . . . . Utility . | . . . . . . . . Weapon . | . . . . . . . . Parts Attached . | . . . . . . . . Power . | . . . . . . . . Engine . | . . . . . . . . Core . | . . . . . . . . Reactor . | . . . . . . . . Propulsion . | . . . . . . . . Treads . | . . . . . . . . Leg . | . . . . . . . . Wheel . | . . . . . . . . Hover . | . . . . . . . . Flight . | . . . . . . . . Utility . | . . . . . . . . Device . | . . . . . . . . Storage . | . . . . . . . . Processor . | . . . . . . . . Hackware . | . . . . . . . . Protection . | . . . . . . . . Artifact . | . . . . . . . . Weapon . | . . . . . . . . Energy Gun . | . . . . . . . . Energy Cannon . | . . . . . . . . Ballistic Gun . | . . . . . . . . Ballistic Cannon . | . . . . . . . . Launcher . | . . . . . . . . Special Weapon . | . . . . . . . . Impact Weapon . | . . . . . . . . Slashing Weapon . | . . . . . . . . Piercing Weapon . | . . . . . . . . Special Melee Weapon . | . . . . . . . . Unidentified Prototypes . | . . . . . . . . Parts Lost 11 | . . 4 . . 1 4 2 Power 2 | . . 2 . . . . . Propulsion 1 | . . 1 . . . . . Utility 6 | . . . . . 1 4 1 Weapon 2 | . . 1 . . . . 1 Highest Loss Streak 3 | . . 3 . . 1 2 2 To Critical Strikes . | . . . . . . . . Average Backups . | . . . . . . . . Power . | . . . . . . . . Propulsion . | . . . . . . . . Utility . | . . . . . . . . Weapon . | . . . . . . . . Tool/Special . | . . . . . . . . Unused Backups . | . . . . . . . . Power . | . . . . . . . . Propulsion . | . . . . . . . . Utility . | . . . . . . . . Weapon . | . . . . . . . . Tool/Special . | . . . . . . . . Average Slot Usage (%) 86 | . 100 95 57 96 93 87 74 Engine 6 | . 20 18 1 3 3 3 3 Leg 4 | . . 25 . . . . . Hover 6 | . 40 12 1 3 3 3 3 Device 2 | . . 12 . . . . . Processor 11 | . . . 9 15 15 15 15 Hackware 47 | . 20 7 41 69 66 60 49 Energy Gun 4 | . . 12 1 3 3 3 2 Special Melee Weapon 1 | . 20 5 . . . . . Peak Build Rating 99 | . 7 7 99 99 99 97 89 Average Rating 71 | . 7 5 65 99 97 94 87 On Entrance 48 | . . 7 . 99 99 97 89 Naked Turns 48 | . . 2 46 . . . . Heaviest Build 21 | . 4 7 21 21 21 21 21 Greatest Support 21 | 3 12 20 21 21 21 21 21 Greatest Overweight (x) . | . . . . . . . . Average Overweight (x) . | . . . . . . . . Largest Inventory Capacity 2 | . 1 1 2 2 2 2 2 Average Capacity 1 | . 1 . 1 2 2 2 2 Most Carried 1 | . . . 1 1 1 1 1 Average Carried . | . . . . 1 1 1 1 Final Capacity 2 | . 1 . 2 2 2 2 2 Final Carried 1 | . . . 1 1 1 1 1 Class Distribution -------------------- 74% | Assembler 12% | Grunt 9% | Operator 3% | Cogmind Dominant Class ---------------- Operator | -10/Materials Grunt | -10/Mines Assembler | -10/Exiles Assembler | -9/Mines Assembler | -8/Materials Assembler | -7/Factory Assembler | -7/Storage Resources | -11 -10 -10 -10 -9 -8 -7 -7 ----------- Run | Yrd Mat Min Exi Min Mat Fac Sto Matter Collected . | . . . . . . . . Remotely . | . . . . . . . . Salvage Created 918 | . . 60 . . 216 642 . Parts 50 | . . . . . 15 35 . Haulers Intercepted . | . . . . . . . . Recyclers Shooed . | . . . . . . . . Parts Field Recycled . | . . . . . . . . Retrieved Matter . | . . . . . . . . Parts Self-Destructed . | . . . . . . . . Prevented . | . . . . . . . . Kills | -11 -10 -10 -10 -9 -8 -7 -7 ------- Run | Yrd Mat Min Exi Min Mat Fac Sto Combat Hostiles Destroyed 16 | . . 1 . . 4 11 . Guns 12 | . . 1 . . 4 7 . Classes Destroyed 8 | . . 1 . . 4 3 . Worker 1 | . . . . . . 1 . Tunneler 1 | . . . . . 1 . . Watcher 4 | . . . . . 1 3 . Swarmer 4 | . . . . . . 4 . Grunt 3 | . . 1 . . . 2 . Sentry 5 | . . . . . 3 2 . Hunter 2 | . . . . . 1 1 . Programmer 2 | . . . . . . 2 . Best Kill Streak 5 | . . 1 . . 5 5 . Combat Bots Only 4 | . . 1 . . 1 4 . Max Kills in Single Turn 1 | . . 1 . . 1 1 . Gunslinging . | . . . . . . . . Exploded . | . . . . . . . . Melee . | . . . . . . . . Uniques/NPCs Destroyed . | . . . . . . . . Combat | -11 -10 -10 -10 -9 -8 -7 -7 -------- Run | Yrd Mat Min Exi Min Mat Fac Sto Hostile Shots Fired 135 | . . 38 . . 8 62 27 Missed 49 | . . 12 . . 2 28 7 Hits 86 | . . 26 . . 6 34 20 Projectile 86 | . . 26 . . 6 34 20 AOE 2 | . . 2 . . . . . Critical Strikes 2 | . . 1 . . . 1 . Damage Taken 976 | . . 446 . . 84 302 144 Core 267 | . . 153 . . 11 81 22 Absorbed by Shields . | . . . . . . . . Ignored by Resistances 143 | . . . . . . 143 . Core Remaining (%) 78 | 100 . . . 38 98 . . Volleys Fired 15 | . . 15 . . . . . Largest 1 | . . 1 . . . . . Hottest 40 | . . 40 . . . . . Shots Fired 86 | . . 15 . . 14 54 3 Gun 86 | . . 15 . . 14 54 3 Cannon . | . . . . . . . . Launcher . | . . . . . . . . Special . | . . . . . . . . Kinetic . | . . . . . . . . Thermal 15 | . . 15 . . . . . Explosive . | . . . . . . . . Electromagnetic 71 | . . . . . 14 54 3 Robot Hit Streak 12 | . . 7 . . 12 11 7 Robot Miss Streak 4 | . . 1 . . 2 4 2 Penetration Max . | . . . . . . . . Secondary Targets . | . . . . . . . . Autonomous 71 | . . . . . 14 54 3 Shots Hit Robots 82 | . 1 14 . . 13 51 3 Core Hits 54 | . . 3 . . 10 39 2 Critical Kills . | . . . . . . . . Critical Parts Destroyed . | . . . . . . . . Critical Strikes 5 | . . . . . 1 4 . Corrupt 5 | . . . . . 1 4 . Melee Attacks 3 | . 1 2 . . . . . Impact . | . . . . . . . . Slashing . | . . . . . . . . Piercing . | . . . . . . . . Sneak Attacks 3 | . 1 2 . . . . . Combat Hostiles . | . . . . . . . . Follow-up Attacks . | . . . . . . . . Damage Inflicted 1542 | . . 138 . . 279 1068 57 Guns 1536 | . . 132 . . 279 1068 57 Cannons . | . . . . . . . . Explosions . | . . . . . . . . Melee . | . . . . . . . . Ramming 6 | . . 6 . . . . . Kinetic . | . . . . . . . . Thermal 132 | . . 132 . . . . . Explosive . | . . . . . . . . Electromagnetic 1404 | . . . . . 279 1068 57 Impact . | . . . . . . . . Slashing . | . . . . . . . . Piercing . | . . . . . . . . Highest Corruption . | . . . . . . . . Average Corruption . | . . . . . . . . Corruption Purged . | . . . . . . . . Corruption Blocked . | . . . . . . . . Overload Shots . | . . . . . . . . Overflow Damage . | . . . . . . . . Projectiles . | . . . . . . . . Explosions . | . . . . . . . . Melee . | . . . . . . . . Knockbacks . | . . . . . . . . Impact . | . . . . . . . . Kinetic . | . . . . . . . . Secondary . | . . . . . . . . Self-Inflicted Damage 2 | . . 2 . . . . . Shots . | . . . . . . . . Rammed 3 | . . 3 . . . . . Targets Rammed 3 | . . 3 . . . . . Kicked . | . . . . . . . . Crushed . | . . . . . . . . Highest Temperature 126 | . . 126 . . . 5 5 Average Temperature 64 | . . 67 . . . 5 5 Received Heat Transfer 372 | . . 222 . . 18 90 42 Siege Activations . | . . . . . . . . Martial Activations . | . . . . . . . . Shielding Activations . | . . . . . . . . Robots Disrupted . | . . . . . . . . Combat Hostiles . | . . . . . . . . Robots Corrupted 4 | . . . . . . 4 . Combat Hostiles 4 | . . . . . . 4 . Parts Fried 7 | . . . . . 1 6 . Impact Corruptions . | . . . . . . . . Robots Melted . | . . . . . . . . Combat Hostiles . | . . . . . . . . Parts Melted . | . . . . . . . . Heat Transferred 300 | . . 300 . . . . . Parts Sabotaged . | . . . . . . . . Parts Stolen . | . . . . . . . . Parts Stripped . | . . . . . . . . Power Chain Reactions . | . . . . . . . . Alert | -11 -10 -10 -10 -9 -8 -7 -7 ------- Run | Yrd Mat Min Exi Min Mat Fac Sto Maximum Alert Level . | . . . . . . . . Low Security (%) 100 | 100 100 100 . 100 100 100 100 Level 1 . | . . . . . . . . Level 2 . | . . . . . . . . Level 3 . | . . . . . . . . Level 4 . | . . . . . . . . Level 5 . | . . . . . . . . High Security . | . . . . . . . . Max Security . | . . . . . . . . Peak Influence 179 | . 11 20 . . 82 179 92 Initial 72 | . . . . . . 37 72 Average 37 | . 4 2 . . 23 54 73 Influence Increases 584 | . 11 30 . . 132 381 30 Destroy 0b10 Robot/C 320 | . . 20 . . 80 220 . Destroy 0b10 Robot/NC 30 | . . . . . 10 20 . Destroy Leader 118 | . . 10 . . 42 66 . Successful Hack 11 | . 11 . . . . . . Disable Machine 15 | . . . . . . 15 . Partial Spotted 30 | . . . . . . . 30 Lose Combat Pursuer 60 | . . . . . . 60 . Influence Decreases 522 | . 11 30 . . 50 304 127 Entered New Map 132 | . . . . . . 45 87 Time Decay 330 | . 11 30 . . 50 219 20 Lost Part 60 | . . . . . . 40 20 Squads Dispatched 3 | . . . . . . 3 . Investigation . | . . . . . . . . Extermination 3 | . . . . . . 3 . Reinforcement . | . . . . . . . . Assault . | . . . . . . . . Garrison . | . . . . . . . . Intercept . | . . . . . . . . Searches Triggered . | . . . . . . . . Construction Impeded . | . . . . . . . . Haulers Reinforced . | . . . . . . . . Active Scanning Responses . | . . . . . . . . Cargo Convoy Interrupts . | . . . . . . . . Stealth | -11 -10 -10 -10 -9 -8 -7 -7 --------- Run | Yrd Mat Min Exi Min Mat Fac Sto Distress Signals 3 | . . . . . 2 1 . Communications Jammed . | . . . . . . . . Distress Signals . | . . . . . . . . Times Spotted 39 | . 1 10 . . 5 22 1 Peak Tracking Total 20 | . 1 20 . . 2 5 1 Tactical Retreats 2 | . . 1 . . . 1 . Traps | -11 -10 -10 -10 -9 -8 -7 -7 ------- Run | Yrd Mat Min Exi Min Mat Fac Sto Traps Triggered 1 | . . . . . . 1 . Indirectly . | . . . . . . . . Trap Hack Attempts . | . . . . . . . . Triggered . | . . . . . . . . Disarmed 11 | . . . . . . 11 . Reprogrammed . | . . . . . . . . Reused . | . . . . . . . . Traps Extracted . | . . . . . . . . Installed . | . . . . . . . . Triggered . | . . . . . . . . Machines | -11 -10 -10 -10 -9 -8 -7 -7 ---------- Run | Yrd Mat Min Exi Min Mat Fac Sto Machines Disabled 1 | . . . . . . 1 . Max in Single Turn 1 | . . . . . . 1 . Machines Repaired . | . . . . . . . . Machines Dismantled . | . . . . . . . . Machines Sabotaged . | . . . . . . . . Overloaded Fab Kills . | . . . . . . . . Hacking | -11 -10 -10 -10 -9 -8 -7 -7 --------- Run | Yrd Mat Min Exi Min Mat Fac Sto Machines Accessed 9 | . 1 . 1 . 4 1 2 Terminals 8 | . 1 . . . 4 1 2 Fabricators . | . . . . . . . . Repair Stations . | . . . . . . . . Recycling Units . | . . . . . . . . Scanalyzers . | . . . . . . . . Garrison Access . | . . . . . . . . Total Hacks 50 | . 3 . 1 . 24 18 4 Successful 44 | . 2 . 1 . 22 17 2 Failed 5 | . . . . . 2 1 2 Catastrophic 1 | . . . . . . . 1 Database Lockouts 1 | . 1 . . . . . . Manual 31 | . 3 . . . 20 5 3 Terminals 49 | . 3 . . . 24 18 4 Fabricators . | . . . . . . . . Repair Stations . | . . . . . . . . Recycling Units . | . . . . . . . . Scanalyzers . | . . . . . . . . Garrison Access . | . . . . . . . . Terminal Hacks 44 | . 2 . 1 . 22 17 2 Record 3 | . . . 1 . . 2 . Part Schematic 3 | . . . . . . 3 . Robot Analysis 10 | . 1 . . . 9 . . Prototype ID Bank 1 | . . . . . 1 . . Open Door 1 | . . . . . . . 1 Level Access Points 1 | . . . . . 1 . . Branch Access Points 4 | . 1 . . . 1 1 1 Emergency Access Points 2 | . . . . . 1 1 . Machine Index 2 | . . . . . 1 1 . Locate Traps 2 | . . . . . 1 1 . Disarm Traps 4 | . . . . . . 4 . Dispatch Records 1 | . . . . . . 1 . Security Status 1 | . . . . . 1 . . Surveillance Status 1 | . . . . . . 1 . Patrol Status 2 | . . . . . 1 1 . Transport Status 1 | . . . . . 1 . . Investigation Status 1 | . . . . . 1 . . Recall Investigation 1 | . . . . . 1 . . Registered Components 1 | . . . . . 1 . . Zone Layout 2 | . . . . . 1 1 . Fabricator Hacks . | . . . . . . . . Repair Station Hacks . | . . . . . . . . Recycling Unit Hacks . | . . . . . . . . Scanalyzer . | . . . . . . . . Garrison Access Hacks . | . . . . . . . . Unauthorized Hacks . | . . . . . . . . Terminals . | . . . . . . . . Fabricators . | . . . . . . . . Repair Stations . | . . . . . . . . Recycling Units . | . . . . . . . . Scanalyzers . | . . . . . . . . Garrison Access . | . . . . . . . . Data Cores Recovered . | . . . . . . . . Used . | . . . . . . . . Hacking Detections 4 | . 1 . . . 1 1 1 Full Trace Events . | . . . . . . . . Feedback Events . | . . . . . . . . Feedback Blocked . | . . . . . . . . Robot Schematics Acquired . | . . . . . . . . Robots Built . | . . . . . . . . Authchips . | . . . . . . . . Time . | . . . . . . . . Total Robot Build Rating . | . . . . . . . . Part Schematics Acquired 3 | . . . . . . 3 . Parts Built . | . . . . . . . . Authchips . | . . . . . . . . Time . | . . . . . . . . Total Part Build Rating . | . . . . . . . . Parts Repaired . | . . . . . . . . Time . | . . . . . . . . Parts Recycled . | . . . . . . . . Recycled Matter . | . . . . . . . . Retrieved Matter . | . . . . . . . . Retrieved Components . | . . . . . . . . Parts Scanalyzed . | . . . . . . . . Part Schematics Acquired . | . . . . . . . . Parts Damaged . | . . . . . . . . Bothacking | -11 -10 -10 -10 -9 -8 -7 -7 ------------ Run | Yrd Mat Min Exi Min Mat Fac Sto Used RIF Installer . | . . . . . . . . Robots Hacked 3 | . 1 2 . . . . . Non-combat 2 | . 1 1 . . . . . Combat 1 | . . 1 . . . . . Robot Hacks Applied 3 | . 1 2 . . . . . parse_system 1 | . . 1 . . . . . find_terminals 1 | . 1 . . . . . . find_shortcuts 1 | . . 1 . . . . . Relay Couplers Released . | . . . . . . . . Fabnet Peak Effective % . | . . . . . . . . Robots Rewired . | . . . . . . . . Allies Hacked . | . . . . . . . . Hacks Repelled . | . . . . . . . . Allies | -11 -10 -10 -10 -9 -8 -7 -7 -------- Run | Yrd Mat Min Exi Min Mat Fac Sto Total Allies . | . . . . . . . . Largest Group . | . . . . . . . . Highest-Rated Group . | . . . . . . . . Highest-Rated Ally . | . . . . . . . . Total Orders . | . . . . . . . . Ally Attacks . | . . . . . . . . Total Damage . | . . . . . . . . Kills . | . . . . . . . . Allies Corrupted . | . . . . . . . . Allies Melted . | . . . . . . . . Intel | -11 -10 -10 -10 -9 -8 -7 -7 ------- Run | Yrd Mat Min Exi Min Mat Fac Sto Active Infowar (turns) . | . . . . . . . . Robot Analysis Total 11 | . 2 . . . 9 . . Derelict Logs Recovered 1 | . . 1 . . . . . Drone Launches . | . . . . . . . . Drone Recoveries . | . . . . . . . . Exploration | -11 -10 -10 -10 -9 -8 -7 -7 ------------- Run | Yrd Mat Min Exi Min Mat Fac Sto Turns Passed 1309 | 9 40 246 136 13 152 665 48 Spaces Moved 1514 | 18 69 232 204 17 166 749 59 Core 112 | 18 . 3 91 . . . . Treads . | . . . . . . . . Legs 107 | . . 107 . . . . . Wheels . | . . . . . . . . Hover 1295 | . 69 122 113 17 166 749 59 Flight . | . . . . . . . . Fastest Speed 50 | 50 56 50 50 80 80 80 80 Average Speed 77 | 50 56 86 66 80 80 80 80 Slowest Speed 120 | 50 56 120 80 80 80 80 80 Overloaded Moves . | . . . . . . . . Propulsion Burnouts . | . . . . . . . . Robots Hopped . | . . . . . . . . Potential Cave-ins . | . . . . . . . . Cave-ins Triggered . | . . . . . . . . Exploration Rate (%) 25 | 3 21 54 52 10 22 23 19 Regions Visited 7 Branch Regions 4 Pre-discovered Areas 2 | . . 1 1 . . . . Known Exits Taken 3 | . 1 . . . 1 1 . Unknown Exits Taken 4 | 1 . 1 1 1 . . . Scrap Searched 1 | . . . . 1 . . . Spaces Dug . | . . . . . . . . Terrain Destroyed . | . . . . . . . . Melee . | . . . . . . . . Projectile . | . . . . . . . . AOE . | . . . . . . . . Terrain Rammed . | . . . . . . . . Walls Destroyed . | . . . . . . . . Machines Disabled . | . . . . . . . . Actions | -11 -10 -10 -10 -9 -8 -7 -7 --------- Run | Yrd Mat Min Exi Min Mat Fac Sto Total 1623 | 17 69 261 203 16 184 814 59 Wait 95 | . . 10 . . 19 66 . Move 1507 | 17 68 231 203 16 165 748 59 Hop . | . . . . . . . . Pick Up . | . . . . . . . . Fast Attach . | . . . . . . . . Attach . | . . . . . . . . Detach . | . . . . . . . . Swap . | . . . . . . . . Drop . | . . . . . . . . Fire 15 | . . 15 . . . . . Melee 3 | . 1 2 . . . . . Ram 3 | . . 3 . . . . . Kick . | . . . . . . . . Crush . | . . . . . . . . Escape Stasis . | . . . . . . . . Rewire . | . . . . . . . . Trap . | . . . . . . . . Miscellaneous . | . . . . . . . . Route ------- -11/Scrapyard -10/Materials -10/Mines -10/Exiles -9/Mines -8/Materials (discovered 3 exits: *Fac x3) -7/Factory (discovered 4 exits: [*Fac] / *Sto / *Low x2) -7/Storage (discovered 1 exit: Rec) History --------- Turn | Location | Event 4 | -11/Scrapyard | Discovered new exit (range 13) 10 | -11/Scrapyard | Entered Materials 14 | -10/Materials | Identified exit to Mines 14 | -10/Materials | Central database locked down 50 | -10/Materials | Entered Mines 57 | -10/Mines | Received a Rocket Launcher from a helpful Derelict 94 | -10/Mines | Assembled infested the area 152 | -10/Mines | Lost 3 parts (1p1n1w) 163 | -10/Mines | Core integrity fell below 50% 290 | -10/Mines | Deemed a non-threat by the Exiles lab entrance 290 | -10/Mines | Discovered new exit (range 5) 296 | -10/Mines | Entered Exiles 309 | -10/Exiles | Met 8R-AWN 318 | -10/Exiles | Met EX-HEX 336 | -10/Exiles | Met EX-DEC 342 | -10/Exiles | Took control of EX-DEC (ally) 369 | -10/Exiles | Discovered new exit (range 10) 400 | -10/Exiles | Learned location of Zion (-7) 432 | -10/Exiles | Left Exiles lab with Deploy-a-Sentry 432 | -10/Exiles | Entered Mines 438 | -9/Mines | Discovered new exit (range 7) 445 | -9/Mines | Entered Materials 476 | -8/Materials | Identified exit to Factory 597 | -8/Materials | Entered Factory 664 | -7/Factory | Discovered new exit (range 5) 798 | -7/Factory | Identified exit to Storage 798 | -7/Factory | Identified exit to Lower Caves 900 | -7/Factory | Discovered new exit (range 9) 1262 | -7/Factory | Entered Storage 1301 | -7/Storage | Identified exit to Recycling 1310 | -7/Storage | Self-destructed Last Messages --------------- 01163_ U-05 Engineer lays Concrete. 01163_ K-01 Serf collects debris. 01194_ K-01 Serf cleans the Fusion Modulator. 01239_ EX Chip 1 destroyed. 01244_ Y-54 Guardian system terminally corrupted. 01244_ Acquired 42 Protomatter. 01246_ ALERT: Potential suspicious activity detected, Programmers report to Factory Zone 1Q. LOCATION=STORAGE GOAL=ESCAPE 01269_ Connecting with Door Terminal... >>Open(Door) Sealed Heavy Doors opened. 01301_ Connecting with Terminal... >>Access(Branch) Found 1 branch access point: (64,68) Recycling Map updated. 01302_ EX Chip 1 destroyed. 01308_ AWS/EX-DEC destroyed. Map ----- +----------------------------------------------------+ | ???????????????????????????????????? | | ???????????????????????????????????? | | ???????????????????????????????????? | | ???????????????????????????????????? | | ???????????????????????????????????? | | ???????????????????????????????????? | | ????????##+##??????????????????????? | | ????????# ??????????????????????? | | ?????#### #??????????????????????? | | ?????# #??????????????????????? | | ?????# #??????????????????????? | | ?????# a#??????????????????????? | | ?????? a #??????????????????????? | | ######??# ###????????????????????? | | # ?# T#????????????????????? | | # ?# ""#????????????????????? | | # # ###????????????????????? | | # # #??????????????????????? | | # + #??????????????????????? | | # # #??????????????????????? | | # # #??????????????????????? | | # + #??????????????????????? | | # # #??????????????????????? | | # # #??????????????????????? | | # ?# #??????????????????????? | | ######??# c#??????????????????????? | | ? ??# #??????????????????????? | | ? ?# #??????????????????????? | | ? """ ?# r#??????????????????????? | | # """ #Y #??????????????????????? | | # """ # #??????????????????????? | | # + #??????????????????????? | | # """ # #??????????????????????? | | # """ # #??????????????????????? | | ? """ ?# #??????????????????????? | | ? ?# #??????????????????????? | | ? ??# #??????????????????????? | | ### ##??# #??????????????????????? | | ??##????# ####???????????????????? | | ????????# # #???????????????????? | | ????????# r # " [ #??????????????? | | ????????# + [#??????????????? | | ????????# # " #??????????????? | | ????????# ##T#?]] #??????????????? | | ????????# #?##?? ]#??????????????? | | ????????# #???????#??????????????? | | ????????# #??#######?????????????? | | ????????# #? #?????????????? | | ????????# +?=!= #?????????????? | | ????##### # =!= +?????????????? | +----------------------------------------------------+ Best States ------------- Heat Dissipation 25 Energy Generation 23 Energy Capacity 235 Sight Range 16 Terrain Scan Density 10 Resistance: EM 90 Evasion (%) 55 Launcher Accuracy 40 Target Analysis 6 Core Analysis 8 Armor Integrity Analysis 40 Offensive Hacking 70 Defensive Hacking 56 Item Schematics ----------------- Exp. Heat Sink | -7/Factory | Hacked Imp. Deuterium Engine | -7/Factory | Hacked Fusion Compressor | -7/Factory | Hacked Robot Schematics ------------------ None Fabricated ------------ Nothing Repaired ---------- Nothing Alien Tech Used ----------------- None Achievements -------------- None Challenges ------------ None Polymind | -11 -10 -10 -10 -9 -8 -7 -7 ---------- Run | Yrd Mat Min Exi Min Mat Fac Sto Hosts 3 | . 1 1 1 . . . . Combat Hostiles 1 | . . 1 . . . . . Allies 1 | . . . 1 . . . . Unique Host Classes 3 | . 1 1 1 . . . . Average Host Suspicion 76 | . 34 91 . 2 91 84 27 Unsuspicious Activity 35 | . 12 7 16 . . . . Returns to Shadow . | . . . . . . . . Fuzzy Dispatches 3 | . . . . . . 3 . Protomatter Created 215 | . . 111 . . 34 70 . Used 53 | . 5 15 33 . . . . Decayed 23 | . . 23 . . . . . Highest Spend 33 | . 5 15 33 . . . . Top 5 Hosts by Kills: EX-DEC (-10/Exiles: 15) G-34 Mercenary (-10/Mines: 1) Game ------ Seed BattleStorageClaw Manual? 0 Play Time 00:14:05 Cumulative 167.3 hours Start 2025.05.31 @ 14:39:45 End 2025.05.31 @ 14:53:10 Sessions 1 Manual Loads 0 Difficulty Rogue Special Mode Winter2022/Polymind Game No. 254 Rogue 251 Adventurer 3 Explorer 0 Win Type - Total 1 Types 1/0/0/0/0/0/0/0/0/0 Lore% 55 Gallery% 57 Achievement% 45 Wizard Run 0 Options --------- Layout 0 ASCII 0 Keyboard 0 Movement Mouse Keybinds 0 Fullscreen 2 Font 18/SmallcapsGlow Map View 76x50 Zoom Use 0% Tactical HUD 1 Map Filters NONE Filters NONE Steam 1 RUN: cdc55185-2116-42f2-b126-0d43454f84c2